[Event "88th Tata Steel Masters 2026"]
[White "Erdogmus,Yagiz Kaan"]
[Black "Abdusattorov,Nodirbek"]
[Site "Wijk aan Zee"]
[Round "1.1"]
[Annotator "TA"]
[Result "1/2-1/2"]
[Date "2026.01.17"]
[WhiteElo "2658"]
[BlackElo "2751"]
[PlyCount "82"]
[TimeControl "60"]

{[%evp 9,82,28,30,29,23,20,31,33,33,14,12,15,38,34,12,16,25,25,23,23,23,18,18,20,20,17,17,16,16,16,17,18,33,7,10,0,19,8,21,21,21,20,21,21,21,21,21,21,21,12,12,9,10,9,9,9,9,9,9,11,20,-4,0,0,0,0,0,0,0,0,0,0,11,0,0]} 1. e4 {[%emt 0:0:0]} e5 {[%emt 0:0:0]} 2. Nf3 {[%emt 0:0:0]} Nc6 {[%emt 0:0:0]} 3. Bb5 {[%emt 0:0:0]} a6 {[%emt 0:0:0]} 4. Bxc6 {[%emt 0:0:0]} dxc6 {[%emt 0:0:0]} 5. O-O {[%emt 0:0:0]} Qf6 {[%emt 0:0:0]} 6. d4 {[%emt 0:0:0] C68: Ruy Lopez: Exchange Variation, sidelines.} exd4 {[%emt 0:0:0]} 7. Bg5 {[%emt 0:0:0]} Qd6 {[%emt 0:0:0]} 8. Nxd4 {[%emt 0:0:0][%cal Yf3d4,Yd4e2,Ye2f4][%mdl 32] White is slightly better.} Be7 {[%emt 0:0:0]} 9. Be3 {[%emt 0:0:0]} Nf6 {[%emt 0:0:0]} 10. f3 {[%emt 0:0:0]} c5 {[%emt 0:0:0] The main line 10...c5 scores better than 10...0-0.} 11. Ne2 {[%emt 0:0:0]} Be6 {[%emt 0:0:0]} 12. Nf4 {[%emt 0:0:0]} O-O-O {[%emt 0:0:0]} 13. Qxd6 {[%emt 0:1:43]} cxd6 {[%emt 0:0:0]} 14. Nc3 {[%emt 0:1:52]} d5 {[%emt 0:0:0]} 15. exd5 {[%emt 0:2:44]} Nxd5 {[%emt 0:0:0]} 16. Nfxd5 {[%emt 0:0:39]} Bxd5 {[%emt 0:0:0]} 17. Na4 {[%emt 0:2:10][%cal Ya1d1]} Bf6 {[%emt 0:0:0]} 18. Bxc5 {[%emt 0:5:18]} ({Reject} 18. Nxc5 $6 Rhe8 (18... Bxb2 $2 19. Rab1 $19 )19. Kf2 Bxb2 $17 )b5 {[%emt 0:0:0]} 19. Nc3 {[%emt 0:3:2]} Bxc3 {[%emt 0:0:0]} 20. bxc3 {[%emt 0:0:35]} Bc4 {[%emt 0:0:0]} 21. Rf2 $146 {[%emt 0:10:25]} ({Predecessor:} 21. Rfe1 Rhe8 22. a3 g6 23. Bd4 Rxe1+ 24. Rxe1 Kd7 25. Kf2 Re8 26. Be3 Re6 27. g4 {½-½ Paichadze,L (2529)-Petrosyan,M (2541) New Delhi op 21st 2025 (7)} )Rhe8 {[%emt 0:0:0] The position is equal.} 22. Bd4 {[%emt 0:2:13]} f6 {[%emt 0:0:44]} 23. Rd2 {[%emt 0:2:56]} Re6 {[%emt 0:2:0]} 24. a3 {[%emt 0:4:9]} Rde8 {[%emt 0:1:36]} 25. h4 {[%emt 0:5:10]} Re2 {[%emt 0:0:35]} 26. Rad1 {[%emt 0:2:3]} Rxd2 {[%emt 0:0:53]} 27. Rxd2 {[%emt 0:0:32]} Re2 {[%emt 0:0:36]} 28. Rxe2 {[%emt 0:1:3]} Bxe2 $11 {[%emt 0:0:33][%mdl 4096] Endgame KB-KB. White is a pawn up.} 29. h5 {[%emt 0:2:6]} Kd7 {[%emt 0:0:36]} 30. Kf2 {[%emt 0:1:22]} Bd1 {[%emt 0:0:39]} 31. h6 {[%emt 0:2:55]} gxh6 {[%emt 0:0:35]} 32. Ke3 {[%emt 0:0:38]} Bxc2 {[%emt 0:0:43]} 33. Bxf6 {[%emt 0:0:33]} Ke6 {[%emt 0:2:5]} 34. Bg7 {[%emt 0:1:21]} h5 {[%emt 0:0:33]} 35. Kd4 {[%emt 0:1:21]} a5 {[%emt 0:1:26]} 36. Be5 {[%emt 0:1:57]} a4 {[%emt 0:0:55]} 37. Bc7 {[%emt 0:0:59]} Kf5 {[%emt 0:0:41]} 38. c4 {[%emt 0:1:17]} bxc4 {[%emt 0:0:35]} 39. Kxc4 {[%emt 0:0:32]} Bb3+ {[%emt 0:0:41]} 40. Kd4 {[%emt 0:0:0]} Bc2 {[%emt 0:0:0]} 41. Kd5 {[%emt 0:20:10]} Bb3+ {[%emt 0:20:11] Weighted Error Value: White=0.03 (flawless) /Black=0.03 (flawless)   Inaccurate:     	White=1     	---        OK:         	White=2     	Black=5} 1/2-1/2

[Event "88th Tata Steel Masters 2026"]
[White "Aravindh,Chithambaram VR."]
[Black "Bluebaum,Matthias"]
[Site "Wijk aan Zee"]
[Round "1.2"]
[Annotator "TA"]
[Result "1/2-1/2"]
[Date "2026.01.17"]
[WhiteElo "2700"]
[BlackElo "2679"]
[PlyCount "82"]
[TimeControl "60"]

{[%evp 21,82,10,8,6,18,0,0,0,0,0,11,7,7,8,0,0,43,22,17,30,42,0,0,-35,6,14,28,0,0,0,26,26,26,23,23,31,28,21,20,22,34,31,18,33,40,38,28,36,28,37,49,8,8,0,187,0,0,0,0,0,0,0,0]} 1. d4 {[%emt 0:0:0]} d5 {[%emt 0:0:0]} 2. Nf3 {[%emt 0:0:0]} Nf6 {[%emt 0:0:0]} 3. c4 {[%emt 0:0:0]} e6 {[%emt 0:0:0]} 4. g3 {[%emt 0:0:0]} Be7 {[%emt 0:0:0]} 5. Bg2 {[%emt 0:0:0]} O-O {[%emt 0:0:0]} 6. O-O {[%emt 0:0:0]} dxc4 {[%emt 0:0:0]} 7. Qc2 {[%emt 0:0:0]} a6 {[%emt 0:0:0]} 8. a4 {[%emt 0:0:0]} Bd7 {[%emt 0:0:0]} 9. Qxc4 {[%emt 0:0:0]} Bc6 {[%emt 0:0:0]} 10. Bg5 {[%emt 0:0:0]} Nbd7 {[%emt 0:0:0]} 11. Nc3 {[%emt 0:0:0]} h6 {[%emt 0:0:0]} 12. Bf4 {[%emt 0:0:0] E05: Open Catalan: 5 Nf3 Be7.} Bd6 {[%emt 0:0:0]} 13. Qd3 {[%emt 0:0:0]} Bxf4 {[%emt 0:0:0]} 14. gxf4 {[%emt 0:0:0]} a5 {[%emt 0:0:0]} 15. Kh1 {[%emt 0:0:0]} Nb6 $146 {[%emt 0:15:17]} ({Predecessor:} 15... Ra6 16. Rg1 Rb6 17. Ne5 Nxe5 18. fxe5 Ng4 19. Qg3 Qxd4 20. Bxc6 Nxf2+ 21. Kg2 bxc6 22. Qxf2 Qxe5 {½-½ Caruana,F (2803)-Sarana,A (2677) Tata Steel-A 87th 2025 (7)} )16. e3 {[%emt 0:13:30]} Qe7 {[%emt 0:23:30]} 17. Rg1 {[%emt 0:1:23][%cal Yf1g1,Yg1g3,Yg3h3,Yh3h5][%mdl 32]} Bxf3 {[%emt 0:1:53]} 18. Bxf3 {[%emt 0:0:36]} c6 {[%emt 0:0:33]} 19. Rg3 {[%emt 0:9:47]} Kh8 {[%emt 0:2:0]} 20. Rag1 {[%emt 0:0:59]} Rg8 {[%emt 0:2:49]} 21. b3 {[%emt 0:1:8]} Nbd5 {[%emt 0:4:53]} 22. Nxd5 Nxd5 23. Qe4 {[%emt 0:3:51]} Qf6 {[%emt 0:13:40]} 24. Rh3 {[%emt 0:13:7]} Rac8 {[%emt 0:4:42]} 25. Rh5 {[%emt 0:7:57]} (25. Qe5 {simplifies} Qxe5 26. fxe5 b6 27. Kg2 )c5 {[%emt 0:5:27]} 26. dxc5 {[%emt 0:9:41]} Rxc5 {[%emt 0:0:46]} 27. Qe5 {[%emt 0:1:5]} Rgc8 {[%emt 0:8:49]} 28. Qxf6 {[%emt 0:16:17]} Nxf6 {[%emt 0:0:37][%cal Yd5f6,Yf6g4,Yg4f2,Yf2d3][%mdl 32]} 29. Rxc5 {[%emt 0:0:35]} Rxc5 {[%emt 0:0:31]} 30. Bxb7 $11 {[%emt 0:1:1][%mdl 4096] Endgame KRB-KRN. White is a pawn up.} Rc2 {[%emt 0:0:42]} 31. Kg2 {[%emt 0:1:22]} Ng4 {[%emt 0:4:48]} 32. Kf3 {[%emt 0:11:21]} f5 {[%emt 0:4:45]} 33. h3 {[%emt 0:8:41]} Nxf2 {[%emt 0:1:12]} 34. Rg6 {[%emt 0:1:5]} Rb2 {[%emt 0:4:28]} 35. Bc6 {[%emt 0:5:16]} ({Much weaker is} 35. Rxe6 $6 Nh1 36. e4 (36. Re8+ Kh7 $15 )Rxb3+ 37. Kg2 Rxb7 $11 )e5 {[%emt 0:10:48]} 36. fxe5 {[%emt 0:2:1]} Nd3 {[%emt 0:0:36]} 37. Re6 {[%emt 0:0:46]} Rf2+ {[%emt 0:0:52]} 38. Kg3 {[%emt 0:0:36]} Re2 {[%emt 0:0:33] The position is equal.} 39. Kf3 {[%emt 0:1:25]} Rf2+ {[%emt 0:0:44]} 40. Kg3 {[%emt 0:0:0]} Re2 {[%emt 0:0:0]} 41. Kf3 {[%emt 0:21:19]} Rf2+ {[%emt 0:21:45] Weighted Error Value: White=0.08 (flawless) /Black=0.06 (flawless)   Inaccurate:     	White=4     	Black=3      OK:         	White=3     	Black=8      Best:        	---       	Black=2} 1/2-1/2

[Event "88th Tata Steel Masters 2026"]
[White "Niemann,Hans Moke"]
[Black "Fedoseev,Vladimir"]
[Site "Wijk aan Zee"]
[Round "1.3"]
[Annotator "TA"]
[Result "1-0"]
[Date "2026.01.17"]
[WhiteElo "2725"]
[BlackElo "2705"]
[PlyCount "31"]
[TimeControl "60"]

{[%evp 18,30,45,8,59,15,25,-47,16,0,26,37,170,166,172]} 1. e4 {[%emt 0:0:0]} e5 {[%emt 0:0:0]} 2. Nf3 {[%emt 0:0:0]} Nf6 {[%emt 0:0:0]} 3. Nxe5 {[%emt 0:0:0]} d6 {[%emt 0:0:0]} 4. Nf3 {[%emt 0:0:0]} Nxe4 {[%emt 0:0:0]} 5. d4 {[%emt 0:0:0]} d5 {[%emt 0:0:0]} 6. Bd3 {[%emt 0:0:0]} Bd6 {[%emt 0:0:0]} 7. O-O {[%emt 0:0:0]} O-O {[%emt 0:0:0]} 8. c4 {[%emt 0:0:0][%cal Yc2c4,Yc4c5][%mdl 32]} c6 {[%emt 0:0:0]} 9. Re1 {[%emt 0:0:0]} Bf5 {[%emt 0:0:0][%cal Yc8f5,Yf5g6,Yg6d3][%mdl 32]} 10. Qb3 {[%emt 0:0:0][%csl Yb7,Yd5]} Qd7 {[%emt 0:0:0] A sharp opening The main line 10...Qd7 scores better than 10...Na6. C42: Petroff Defence: 3 Nxe5 and unusual White 3rd moves.} (10... Na6 $11 )11. c5 {[%emt 0:0:0]} Bc7 {[%emt 0:0:0]} 12. Nc3 {[%emt 0:0:0]} ({White should play} 12. Nbd2 $11 )Re8 {[%emt 0:0:0]} (12... Nxc5 $15 13. Bxf5 Nxb3 14. Bxd7 Nxa1 )13. Be3 {[%emt 0:0:0]} Bg6 $146 {[%emt 0:5:10]} (13... Na6 $5 )({Predecessor:} 13... h6 14. Nh4 Bh7 15. g3 Bd8 16. Nf3 Bf6 17. Rad1 Na6 18. Bxe4 dxe4 19. Ne5 Bxe5 20. dxe5 {½-½ Maghsoodloo,P (2740)-Nepomniachtchi,I (2769) Tata Steel-A 86th 2024 (7)} )14. g3 {[%emt 0:0:0]} Nxc5 {[%emt 0:8:19]} 15. dxc5 $18 {[%emt 0:0:0]} Bxd3 {[%emt 0:0:38]} 16. Qxb7 {[%emt 0:0:0] Weighted Error Value: White=0.30/Black=0.56   Missed win:     	White=1     	---        Mistake:       	White=1     	Black=2      Inaccurate:     	White=1     	Black=1      OK:         	---       	Black=1} 1-0

[Event "88th Tata Steel Masters 2026"]
[White "Keymer,Vincent"]
[Black "Giri,Anish"]
[Site "Wijk aan Zee"]
[Round "1.4"]
[Annotator "TA"]
[Result "1-0"]
[Date "2026.01.17"]
[WhiteElo "2776"]
[BlackElo "2760"]
[PlyCount "45"]
[TimeControl "60"]

{[%evp 19,45,33,22,17,13,10,30,18,33,10,27,14,15,7,22,16,15,3,21,20,13,-8,-6,-20,29,28,237,246]} 1. d4 {[%emt 0:0:0]} d5 {[%emt 0:0:0]} 2. c4 {[%emt 0:0:0]} dxc4 {[%emt 0:0:0]} 3. Nf3 {[%emt 0:0:0]} Nf6 {[%emt 0:0:0]} 4. e3 {[%emt 0:0:0]} e6 {[%emt 0:0:0]} 5. Bxc4 {[%emt 0:0:0]} c5 {[%emt 0:0:0]} 6. O-O {[%emt 0:0:0]} a6 {[%emt 0:0:0]} 7. Re1 {[%emt 0:0:0]} Nc6 {[%emt 0:0:0]} 8. Nc3 {[%emt 0:0:0]} Be7 {[%emt 0:0:0]} 9. dxc5 {[%emt 0:0:0]} Qxd1 {[%emt 0:0:0]} 10. Rxd1 {[%emt 0:0:0]} Bxc5 {[%emt 0:0:0]} 11. Nd2 {[%emt 0:0:0] D27: Queen's Gambit Accepted: Classical main line: 7 e4!? and 7 a4.} O-O {[%emt 0:0:0]} 12. Nb3 {[%emt 0:0:0]} Ba7 {[%emt 0:19:52]} 13. Be2 {[%emt 0:0:0] White has an edge.} Rd8 $146 {[%emt 0:7:12]} ({Predecessor:} 13... Bd7 14. g4 h6 15. Ne4 Nxe4 16. Rxd7 Rab8 17. Rd1 Rfd8 18. Rxd8+ Rxd8 19. Bf3 Ng5 20. Bxc6 bxc6 {½-½ Paravyan,D (2612)-Sychev,K (2540) RUS-ch Higher League 76th 2023 (3)} )14. Bd2 {[%emt 0:0:0]} Bd7 {[%emt 0:2:16][%cal Yc8d7,Yd7e8,Ye8a4][%mdl 32]} 15. Be1 {[%emt 0:0:30]} Be8 {[%emt 0:3:33]} 16. Kf1 {[%emt 0:0:34]} Rac8 {[%emt 0:16:13]} 17. Rxd8 {[%emt 0:1:36]} Rxd8 {[%emt 0:2:22]} 18. Rc1 {[%emt 0:0:36][%cal Ya1c1,Yc1c7,Yc7c4][%mdl 32]} h6 {[%emt 0:12:18] The position is symmetric and equal} 19. Na4 {[%emt 0:9:18]} Nd4 {[%emt 0:3:56]} 20. exd4 {[%emt 0:9:23]} Bxa4 {[%emt 0:0:57]} 21. Rc7 {[%emt 0:2:18]} Rb8 {[%emt 0:6:48]} (21... Bc6 {might be stronger.} 22. Bxa6 Nd5 (22... Bxd4 23. Nxd4 Rxd4 24. Bc3 $14 )(22... Bb8 23. Rxb7 Bxb7 24. Bxb7 $14 )23. Rxb7 Bb6 )22. Na5 $11 {[%emt 0:4:7]} Bxd4 $2 {[%emt 0:0:41] [#]} (22... Nd5 $11 23. Rxb7 Rxb7 24. Nxb7 Bxd4 )23. Rc4 {[%emt 0:1:52] Weighted Error Value: White=0.08 (flawless) /Black=0.43   Loses game:     	---       	Black=1      Mistake:       	---       	Black=1      OK:         	White=1     	Black=2} (23. Nxb7 $2 {is the wrong capture.} Bb6 (23... Bxb2 24. Nd6 $15 )24. Rc3 Rxb7 $19 )1-0

[Event "88th Tata Steel Masters 2026"]
[White "Sindarov,Javokhir"]
[Black "Gukesh D"]
[Site "Wijk aan Zee"]
[Round "1.5"]
[Annotator "TA"]
[Result "1/2-1/2"]
[Date "2026.01.17"]
[WhiteElo "2726"]
[BlackElo "2754"]
[PlyCount "155"]
[TimeControl "60"]

{[%evp 13,155,14,17,1,12,0,2,5,0,-12,-14,-15,-6,-15,-14,-14,-14,-7,-7,-9,0,0,0,0,0,-10,0,-17,-11,-18,-11,-11,-11,-12,-12,-25,-10,-14,-16,-18,-10,-12,-19,-20,0,-15,0,-26,-19,-26,-23,-23,-17,-23,-16,-34,-33,-34,-12,-13,-6,-13,0,-94,-90,-125,-120,-122,-126,-120,-100,-277,-277,-467,-378,-467,-437,-458,-452,-437,-437,-328,-386,-325,0,0,0,-428,-428,-412,-412,-252,-331,-12848,-12838,-12838,-12840,-12841,-12841,-5591,-5599,-5591,-5591,-5591,-5591,-5014,-4918,-4622,-4622,-1091,0,0,0,-745,-339,-370,-352,-948,-929,-475,0,0,0,-383,-317,-249,0,0,0,0,0,0,0,0,0,0,0,0,0,0,0,0,0,0]} 1. d4 {[%emt 0:0:0]} Nf6 {[%emt 0:0:0]} 2. c4 {[%emt 0:0:0]} e6 {[%emt 0:0:0]} 3. Nf3 {[%emt 0:0:0]} d5 {[%emt 0:0:0]} 4. Nc3 {[%emt 0:0:0]} Nbd7 {[%emt 0:0:0][%cal Yb8d7,Yd7f6,Yf6e4][%mdl 32]} 5. Qc2 {[%emt 0:0:0]} Bb4 {[%emt 0:0:0]} 6. cxd5 {[%emt 0:0:0]} exd5 {[%emt 0:0:0]} 7. Bg5 {[%emt 0:0:0]} h6 $1 {[%emt 0:0:0][%mdl 4] is more profitable than 7...c5 at the moment.} 8. Bxf6 {[%emt 0:17:37] D38: Queen's Gambit Declined: Ragozin Defence (4 Nf3 Bb4).} Bxc3+ {[%emt 0:0:0]} 9. Qxc3 {[%emt 0:0:38]} Nxf6 {[%emt 0:0:0]} 10. e3 {[%emt 0:0:36]} Ne4 {[%emt 0:0:0]} 11. Qa3 {[%emt 0:5:1]} Nd6 $146 {[%emt 0:5:28]} ({Predecessor:} 11... Qd6 12. Qxd6 Nxd6 13. Bd3 Bf5 14. Bxf5 Nxf5 {½-½ Von Buelow,G (2402)-Neubauer,M (2432) Rio de Janeiro op UERJ 60 anos 2010 (6.1)} )12. Bd3 {[%emt 0:0:58]} O-O {[%emt 0:0:42]} 13. O-O {[%emt 0:0:46]} c6 {[%emt 0:1:53]} 14. Ne5 {[%emt 0:5:18]} Bf5 {[%emt 0:2:18]} 15. Bxf5 {[%emt 0:1:32]} Nxf5 {[%emt 0:0:38]} 16. Qc3 {[%emt 0:0:34]} a5 {[%emt 0:1:8]} 17. a4 {[%emt 0:1:15]} Qe7 {[%emt 0:7:50]} 18. Rab1 {[%emt 0:7:20]} Nd6 {[%emt 0:2:35]} 19. b4 {[%emt 0:4:57]} axb4 {[%emt 0:10:23]} 20. Qxb4 {[%emt 0:1:23]} Ra7 {[%emt 0:1:1]} 21. Nd3 {[%emt 0:5:26]} Qc7 {[%emt 0:8:30]} 22. Rfc1 {[%emt 0:26:38]} Rfa8 {[%emt 0:2:13]} 23. Nc5 {[%emt 0:0:34]} Nc4 {[%emt 0:3:48]} 24. Nd3 {[%emt 0:0:54]} h5 {[%emt 0:12:55]} 25. h3 {[%emt 0:3:36]} g6 {[%emt 0:0:58]} 26. Re1 {[%emt 0:8:15]} h4 {[%emt 0:19:43]} 27. Rec1 {[%emt 0:4:8]} Kg7 {[%emt 0:7:28]} 28. Re1 {[%emt 0:5:36]} Kg8 {[%emt 0:6:49]} 29. Rec1 {[%emt 0:0:35]} Qd8 {[%emt 0:4:47]} 30. Ne5 {[%emt 0:4:26]} Nd6 {[%emt 0:0:36]} 31. Ra1 {[%emt 0:0:34]} Ne4 {[%emt 0:1:3]} 32. Ra2 {[%emt 0:2:17]} Qd6 {[%emt 0:1:47]} 33. Qb6 {[%emt 0:1:12]} Qe7 {[%emt 0:0:54]} 34. Qb3 {[%emt 0:1:28]} Ra5 {[%emt 0:3:48]} 35. Nd3 {[%emt 0:0:42]} b5 {[%emt 0:1:19]} 36. Rca1 {[%emt 0:2:30]} Qa7 {[%emt 0:1:11]} 37. Qc2 {[%emt 0:0:35]} bxa4 {[%emt 0:1:31]} (37... Qa6 {simplifies} 38. Nb4 Qb7 39. axb5 Rxa2 40. Rxa2 Rxa2 41. Nxa2 Qxb5 42. Nc1 Kg7 )38. Nb4 {[%emt 0:0:52]} (38. Qxc6 $11 {remains equal.} Qb8 39. Ra3 )Qb7 $17 {[%emt 0:4:43]} 39. Rxa4 {[%emt 0:0:43]} Qxb4 {[%emt 0:1:30]} 40. Rxb4 {[%emt 0:0:0]} Rxa1+ {[%emt 0:0:0]} 41. Kh2 {[%emt 0:31:45]} Kg7 {[%emt 0:30:34]} 42. Rb7 $2 {[%emt 0:7:29]} (42. Qxc6 Nxf2 43. g3 R8a2 44. Kg2 Ne4+ 45. Kf3 Rf1+ 46. Kg4 hxg3 47. Kh4 g2 48. Rb8 Raf2 49. Qd7 g5+ 50. Kh5 Nf6+ 51. Kxg5 g1=Q+ )(42. Rb2 Rf1 43. Ra2 (43. Qxc6 $2 Raa1 $19 )Rb8 $19 (43... Rxf2 44. Qxf2 Nxf2 45. Rxa8 $18 ))(42. Rb1 $17 )Rf1 $19 {[%emt 0:16:32]} 43. Qxc6 $2 {[%emt 0:9:55]} (43. Rb1 Rxf2 44. Qd1 (44. Qxc6 $2 Raa2 $19 ))Raa1 {[%emt 0:0:4][%csl Ga1][%cal Rf1h1] [#]} 44. Rxf7+ {[%emt 0:0:5]} ({And not} 44. Qxd5 Rh1# )Kxf7 {[%emt 0:1:39][%csl Ga1][%cal Rf1h1]} 45. Qxd5+ {[%emt 0:3:55]} Kg7 {[%emt 0:0:17][%csl Ga1][%cal Rf1h1]} 46. Qe5+ {[%emt 0:0:14]} Nf6 {[%emt 0:1:20][%csl Ga1][%cal Rf1h1]} 47. Qe7+ {[%emt 0:0:9]} Kh6 {[%emt 0:1:3][%csl Ga1][%cal Rf1h1] [#]} 48. Qf8+ {[%emt 0:0:4]} Kh7 {[%emt 0:0:21][%csl Ga1][%cal Rf1h1]} (48... Kg5 49. Qc5+ Kh6 50. Qf8+ Kh5 51. Qh8+ Kg5 52. f4+ Kf5 53. Qc8+ (53. Qxh4 $2 Rh1+ 54. Kg3 Ne4+ 55. Kf3 Rhf1+ 56. Ke2 Rf2+ 57. Kd3 Rxg2 $19 )Ke4 54. Qe6+ (54. Qc6+ Nd5 55. Qe8+ Kd3 56. Qb5+ Kxe3 57. Qb3+ Ke4 58. Qc2+ Kxf4 )Kd3 55. Qb3+ Ke2 56. Qb2+ Kxe3 57. Qb3+ Kxf4 (57... Kxd4 58. Qb2+ Kd3 59. Qb3+ Kd4 60. Qb2+ Kc4 61. Qe2+ Kc5 62. Qe7+ Kc4 63. Qc7+ Kd3 64. Qd8+ Kc2 65. Qc7+ Kd2 66. Qd6+ Ke2 67. Qe5+ Kd3 68. Qb5+ Ke3 69. Qb6+ Kd3 70. Qb3+ Kd4 $11 )58. g3+ hxg3+ 59. Qxg3+ Ke4 60. Qxg6+ Rf5 (60... Kxd4 $2 61. Qg2 $19 )61. d5 )49. Qf7+ {[%emt 0:0:7]} Kh6 {[%emt 0:0:4][%csl Ga1][%cal Rf1h1]} 50. Qf8+ {[%emt 0:0:2]} Kh5 {[%emt 0:0:47][%csl Ga1][%cal Rf1h1]} 51. Qh8+ {[%emt 0:2:11]} Kg5 {[%emt 0:0:1][%csl Ga1][%cal Rf1h1]} 52. f4+ {[%emt 0:0:58]} Kf5 {[%emt 0:0:2][%csl Ga1][%cal Rf1h1]} 53. Qxh4 $2 {[%emt 0:0:37]} (53. Qc8+ Ke4 54. Qe6+ (54. Qc6+ Nd5 55. Qe8+ Kd3 56. Qb5+ Kxe3 57. Qb3+ Ke4 58. Qc2+ Kxf4 )Kd3 55. Qb3+ Ke2 56. Qb2+ Kxe3 57. Qb3+ Kxf4 (57... Kxd4 58. Qb2+ Ke4 59. Qe5+ Kd3 60. Qd6+ Ke2 61. Qe5+ Kd3 62. Qd6+ Ke2 63. Qe6+ Kd2 64. Qd6+ Ke3 65. Qb6+ Kd3 66. Qd6+ $11 )58. g3+ hxg3+ 59. Qxg3+ Ke4 60. Qxg6+ Kxd4 61. Qg2 )Rh1+ {[%emt 0:3:28]} 54. Kg3 {[%emt 0:0:3]} Ne4+ {[%emt 0:0:3]} 55. Kf3 {[%emt 0:0:2]} Rhf1+ {[%emt 0:0:39]} 56. Ke2 {[%emt 0:0:1]} Rf2+ {[%emt 0:0:5]} 57. Kd3 {[%emt 0:0:5]} Rd2+ {[%emt 0:1:43]} 58. Kc4 {[%emt 0:0:6]} Rc1+ {[%emt 0:0:4]} 59. Kb3 {[%emt 0:0:34]} Rc3+ {[%emt 0:0:14]} 60. Kb4 {[%emt 0:0:6]} Rb2+ {[%emt 0:0:6]} 61. Ka4 {[%emt 0:15:4]} Ra2+ $2 {[%emt 0:15:57]} (61... Rc6 $19 {[%cal Rc6a6]} 62. Qg4+ Kf6 63. Qh4+ Ke6 64. d5+ Kxd5 65. Qd8+ Nd6 )62. Kb4 $1 $11 {[%emt 0:0:2] The board is on fire.} Rb2+ $2 {[%emt 0:0:2][%mdl 8192]} (62... Rxe3 $11 63. Qg4+ Kf6 64. Qh4+ Ke6 65. f5+ Kd7 (65... Kxf5 $2 {is the wrong capture.} 66. Qg4+ Kf6 67. Qf4+ Kg7 68. Qxe3 $18 )66. Qh7+ Kc6 67. d5+ Kd6 68. Qxg6+ Ke5 (68... Kxd5 $2 69. Qe6+ Kd4 70. Qxa2 $18 )69. Qg7+ Nf6 (69... Kxd5 $2 70. Qg8+ Ke5 71. Qe6+ Kf4 72. Qxa2 $18 )(69... Kxf5 70. Qh7+ Ke5 71. Qg7+ Kf5 72. Qh7+ Ke5 73. Qc7+ Nd6 74. Qe7+ Kd4 75. Qxd6 $11 ))63. Ka4 $19 {[%emt 0:0:6]} Rxe3 {[%emt 0:1:47]} (63... Nd2 $142 64. Qe7 Ra2+ 65. Kb5 Rb3+ 66. Kc5 Rc2+ 67. Kd5 Rb5+ 68. Qc5 Rbxc5+ 69. dxc5 Nc4 70. g4+ Kf6 )64. Qg4+ {[%emt 0:2:47]} Kf6 {[%emt 0:0:1]} 65. Qh4+ $2 {[%emt 0:0:1]} (65. f5 Ra2+ (65... gxf5 $2 66. Qh5 $19 )66. Kb4 Rb2+ 67. Ka4 )Ke6 {[%emt 0:0:30]} 66. Qd8 {[%emt 0:0:6]} Ra2+ $2 {[%emt 0:0:13]} (66... Nc3+ $19 67. Ka3 Nd1+ 68. Ka4 Kf7 )67. Kb4 $11 {[%emt 0:0:5]} Rb2+ $2 {[%emt 0:0:3][%mdl 8192]} (67... Ree2 $11 68. d5+ Kf7 69. Qd7+ Kf8 70. Qd8+ Kf7 )68. Ka4 $19 {[%emt 0:0:2]} Rxg2 {[%emt 0:1:41]} 69. Qg8+ {[%emt 0:3:50]} Kf5 $2 {[%emt 0:0:31]} (69... Ke7 $19 70. Qg7+ Kd8 )70. Qf8+ $11 {[%emt 0:0:11] The position is equal.} Nf6 {[%emt 0:0:33]} 71. Qc5+ $1 {[%emt 0:0:3]} Kxf4 {[%emt 0:0:30]} 72. Qd6+ {[%emt 0:0:2]} Kf5 {[%emt 0:0:7]} 73. Qc5+ {[%emt 0:0:3]} Kf4 {[%emt 0:0:52]} 74. Qd6+ {[%emt 0:0:3]} Kg5 {[%emt 0:0:34]} 75. h4+ $1 {[%emt 0:0:2]} Kf5 {[%emt 0:0:29]} 76. Qc5+ {[%emt 0:0:2]} Kf4 {[%emt 0:0:28]} 77. Qd6+ {[%emt 0:0:2]} Kf5 {[%emt 0:0:31]} 78. Qc5+ {[%emt 0:0:2] Weighted Error Value: White=0.29 (precise) /Black=0.13 (very precise)   Loses game:     	White=1     	---        Missed win:     	---       	Black=1      Mistake:       	White=4     	Black=2      Inaccurate:     	White=2     	---        OK:         	White=8     	Black=14     Best:        	White=11    	Black=1      Strong:       	White=2     	---} 1/2-1/2

[Event "88th Tata Steel Masters 2026"]
[White "Van Foreest,Jorden"]
[Black "Nguyen,Thai Dai Van"]
[Site "Wijk aan Zee"]
[Round "1.6"]
[Annotator "TA"]
[Result "1/2-1/2"]
[Date "2026.01.17"]
[WhiteElo "2703"]
[BlackElo "2656"]
[PlyCount "54"]
[TimeControl "60"]

{[%evp 14,54,8,0,0,0,7,-31,0,-23,8,18,0,8,34,-32,-52,-20,-10,0,0,-41,-48,-67,-71,-72,-54,-77,-80,-84,-27,-45,-15,-15,-13,-13,0,0,0,-9,0,0,0]} 1. e4 {[%emt 0:0:0]} e5 {[%emt 0:0:0]} 2. Nf3 {[%emt 0:0:0]} Nf6 {[%emt 0:1:54]} 3. d4 {[%emt 0:0:0]} Nxe4 {[%emt 0:0:0]} 4. Bd3 {[%emt 0:0:0]} d5 {[%emt 0:0:20]} 5. Nxe5 {[%emt 0:1:39]} Nd7 {[%emt 0:2:36]} 6. O-O {[%emt 0:1:20]} Nxe5 {[%emt 0:0:0]} 7. dxe5 {[%emt 0:0:10]} Nc5 {[%emt 0:0:0]} 8. Be2 {[%emt 0:11:57]} c6 {[%emt 0:0:0] C43: Petroff Defence: 3 d4.} 9. Nd2 {[%emt 0:1:44]} Be7 {[%emt 0:0:41]} 10. f4 {[%emt 0:26:26]} Bf5 $146 {[%emt 0:25:8] Black is slightly better.} ({Predecessor:} 10... O-O 11. h3 Qb6 12. Kh1 f6 13. c4 fxe5 14. fxe5 Rxf1+ 15. Qxf1 Be6 16. a3 Rf8 17. Qg1 dxc4 18. Nxc4 Qb5 19. a4 Nxa4 20. Qd4 Nc5 21. Ra5 Nb3 {0-1 Kuge,T (1733)-Gibson,T (2017) FICGS W-ch st1 g02 email 2012 (1)} )11. g4 {[%emt 0:4:16]} Be4 {[%emt 0:2:49]} 12. Nxe4 {[%emt 0:0:0]} Nxe4 {[%emt 0:4:58]} 13. Bf3 {[%emt 0:10:39]} h5 {[%emt 0:22:22]} 14. gxh5 {[%emt 0:3:9]} (14. g5 $14 )Bc5+ $15 {[%emt 0:0:0] Black sacrificed a pawn} 15. Kg2 {[%emt 0:0:0]} Qh4 {[%emt 0:4:30]} 16. Qe1 {[%emt 0:1:8] Prevents Nf2.} Rxh5 {[%emt 0:2:18]} 17. Qxh4 {[%emt 0:16:48] Successful Defense White} Rxh4 18. b4 {[%emt 0:52:0]} Bd4 {[%emt 0:15:54]} 19. Rb1 {[%emt 0:0:30]} Ke7 {[%emt 0:2:18] ...Rah8 is the strong threat.} 20. Bxe4 {[%emt 0:0:0]} dxe4 {[%emt 0:9:20]} 21. h3 f6 {[%emt 0:19:20]} (21... f5 $17 22. Rb3 g5 )22. Rd1 $11 {[%emt 0:2:34]} fxe5 {[%emt 0:0:12]} 23. fxe5 {[%emt 0:0:0] The position is equal.} e3 {[%emt 0:1:48][%cal Yd4b6]} 24. Rd3 {[%emt 0:1:37]} Re4 {[%emt 0:0:0]} 25. Kf3 {[%emt 0:0:0][%csl Ye3,Ye4]} Rh4 {[%emt 0:0:28]} 26. Kg2 {[%emt 0:0:37]} Re4 {[%emt 0:2:37]} 27. Kf3 {[%emt 0:0:0][%csl Ye3,Ye4]} Rh4 {[%emt 0:0:37] Weighted Error Value: White=0.13 (very precise) /Black=0.12 (very precise)   Mistake:       	White=1     	Black=1      Inaccurate:     	White=2     	Black=4      OK:         	White=5     	Black=4      Best:        	---       	Black=1} 1/2-1/2